[Event "Live Chess"]
[Site "Chess.com"]
[Date "2023.05.20"]
[Round "-"]
[White "VovaOvchar1990"]
[Black "Doge_Dandolo"]
[Result "0-1"]
[WhiteElo "1212"]
[BlackElo "2008"]
[TimeControl "300"]
[EndTime "13:41:54 PDT"]
[Termination "Doge_Dandolo won by checkmate"]

1. e4 {[%clk 0:04:54.5]} 1... c6 {[%clk 0:04:55.7]} 2. Bc4 {[%clk 0:04:53.6]}
2... d5 {[%clk 0:04:54]} 3. exd5 {[%clk 0:04:52.3]} 3... cxd5 {[%clk 0:04:53.1]}
4. Bb5+ {[%clk 0:04:51.5]} 4... Bd7 {[%clk 0:04:51.7]} 5. Bxd7+ {[%clk
0:04:49.9]} 5... Nxd7 {[%clk 0:04:49.9]} 6. Nf3 {[%clk 0:04:49.2]} 6... e6
{[%clk 0:04:48.2]} 7. d4 {[%clk 0:04:47.1]} 7... Ngf6 {[%clk 0:04:46.6]} 8. c3
{[%clk 0:04:45.8]} 8... Bd6 {[%clk 0:04:45.6]} 9. O-O {[%clk 0:04:44.2]} 9...
Qc7 {[%clk 0:04:44.8]} 10. h3 {[%clk 0:04:42.4]} 10... Ne4 {[%clk 0:04:42.2]}
11. Nbd2 {[%clk 0:04:37.6]} 11... Ndf6 {[%clk 0:04:40.4]} 12. Re1 {[%clk
0:04:25.4]} 12... O-O {[%clk 0:04:38.5]} 13. Nxe4 {[%clk 0:04:20.6]} 13... Nxe4
{[%clk 0:04:37.3]} 14. Ne5 {[%clk 0:04:10.2]} 14... Bxe5 {[%clk 0:04:24.3]} 15.
dxe5 {[%clk 0:04:08.5]} 15... b5 {[%clk 0:04:20.2]} 16. f4 {[%clk 0:04:01.1]}
16... Rfc8 {[%clk 0:04:16.3]} 17. a3 {[%clk 0:03:48.1]} 17... a5 {[%clk
0:04:14.9]} 18. Re3 {[%clk 0:03:42.5]} 18... Qc5 {[%clk 0:04:07.3]} 19. Qg4
{[%clk 0:03:34.3]} 19... b4 {[%clk 0:04:04.3]} 20. axb4 {[%clk 0:03:22.7]} 20...
axb4 {[%clk 0:04:02.8]} 21. Rxa8 {[%clk 0:03:20.1]} 21... Rxa8 {[%clk
0:04:01.5]} 22. Kh2 {[%clk 0:03:01.3]} 22... Ra1 {[%clk 0:03:57.5]} 23. Re1
{[%clk 0:02:48.1]} 23... bxc3 {[%clk 0:03:52.2]} 24. bxc3 {[%clk 0:02:45.5]}
24... Qxc3 {[%clk 0:03:46.3]} 25. Bd2 {[%clk 0:02:28.3]} 25... Nxd2 {[%clk
0:03:42.3]} 26. Rxa1 {[%clk 0:02:20.8]} 26... Qxa1 {[%clk 0:03:40.6]} 27. f5
{[%clk 0:02:17.2]} 27... Qxe5+ {[%clk 0:03:36.2]} 28. Kh1 {[%clk 0:02:13.2]}
28... Ne4 {[%clk 0:03:24.5]} 29. fxe6 {[%clk 0:02:10.8]} 29... Ng3+ {[%clk
0:03:21.2]} 30. Kh2 {[%clk 0:02:08.4]} 30... Ne2+ {[%clk 0:03:13.5]} 31. Kh1
{[%clk 0:02:04]} 31... Qxe6 {[%clk 0:03:10.9]} 32. Qf3 {[%clk 0:01:51.6]} 32...
h6 {[%clk 0:03:02]} 33. Qb3 {[%clk 0:01:41]} 33... d4 {[%clk 0:02:56.6]} 34.
Qb8+ {[%clk 0:01:34.8]} 34... Kh7 {[%clk 0:02:54]} 35. Qb1+ {[%clk 0:01:33.1]}
35... Qg6 {[%clk 0:02:48.9]} 36. Qd1 {[%clk 0:01:29]} 36... d3 {[%clk
0:02:46.6]} 37. Qd2 {[%clk 0:01:23.1]} 37... Qe4 {[%clk 0:02:42.3]} 38. Kh2
{[%clk 0:01:16.8]} 38... Nf4 {[%clk 0:02:40.5]} 39. Kg3 {[%clk 0:01:05]} 39...
Qxg2+ {[%clk 0:02:36.1]} 40. Qxg2 {[%clk 0:01:00.7]} 40... Nxg2 {[%clk
0:02:35.3]} 41. Kxg2 {[%clk 0:00:59.7]} 41... d2 {[%clk 0:02:34.9]} 42. Kf2
{[%clk 0:00:59.1]} 42... d1=Q {[%clk 0:02:34.1]} 43. Kg3 {[%clk 0:00:57.9]}
43... Qd3+ {[%clk 0:02:31.8]} 44. Kg4 {[%clk 0:00:56.7]} 44... f5+ {[%clk
0:02:30.2]} 45. Kh5 {[%clk 0:00:54.8]} 45... Qf3+ {[%clk 0:02:28.5]} 46. Kh4
{[%clk 0:00:53.4]} 46... g5# {[%clk 0:02:24.1]} 0-1

[Event "Live Chess"]
[Site "Chess.com"]
[Date "2023.05.20"]
[Round "-"]
[White "tuppyglossop"]
[Black "Conradical12"]
[Result "1-0"]
[WhiteElo "1633"]
[BlackElo "1570"]
[TimeControl "300"]
[EndTime "13:41:57 PDT"]
[Termination "tuppyglossop won by resignation"]

1. e4 {[%clk 0:04:57.5]} 1... e5 {[%clk 0:04:57.2]} 2. f3 {[%clk 0:04:55.1]}
2... Nf6 {[%clk 0:04:53.3]} 3. Ne2 {[%clk 0:04:52.6]} 3... Bc5 {[%clk
0:04:48.4]} 4. Nbc3 {[%clk 0:04:50.7]} 4... O-O {[%clk 0:04:46]} 5. Ng3 {[%clk
0:04:49.4]} 5... d6 {[%clk 0:04:42.1]} 6. Bc4 {[%clk 0:04:46.9]} 6... Nc6 {[%clk
0:04:40.1]} 7. d3 {[%clk 0:04:44]} 7... Nd4 {[%clk 0:04:34.1]} 8. Bd2 {[%clk
0:04:28.7]} 8... c6 {[%clk 0:04:03.1]} 9. Nce2 {[%clk 0:04:26.3]} 9... Qb6
{[%clk 0:03:58.8]} 10. Nxd4 {[%clk 0:04:22.2]} 10... Bxd4 {[%clk 0:03:57]} 11.
Bb3 {[%clk 0:04:14.1]} 11... Bxb2 {[%clk 0:03:55.1]} 12. Rb1 {[%clk 0:04:12.2]}
12... Bd4 {[%clk 0:03:52.4]} 13. Bxf7+ {[%clk 0:04:10.5]} 1-0

[Event "Live Chess"]
[Site "Chess.com"]
[Date "2023.05.20"]
[Round "-"]
[White "MaximKris"]
[Black "EdenHazard8"]
[Result "1-0"]
[WhiteElo "1847"]
[BlackElo "2057"]
[TimeControl "300"]
[EndTime "13:42:04 PDT"]
[Termination "MaximKris won by checkmate"]

1. e4 {[%clk 0:04:57.5]} 1... c6 {[%clk 0:04:59.4]} 2. Nf3 {[%clk 0:04:55.9]}
2... d5 {[%clk 0:04:59.3]} 3. Nc3 {[%clk 0:04:54.8]} 3... dxe4 {[%clk
0:04:58.2]} 4. Nxe4 {[%clk 0:04:53.8]} 4... Nf6 {[%clk 0:04:58.1]} 5. Nxf6+
{[%clk 0:04:52.9]} 5... exf6 {[%clk 0:04:58]} 6. d4 {[%clk 0:04:52.3]} 6... Bd6
{[%clk 0:04:57.9]} 7. Bd3 {[%clk 0:04:51.7]} 7... O-O {[%clk 0:04:57.8]} 8. O-O
{[%clk 0:04:51]} 8... Re8 {[%clk 0:04:57.7]} 9. Re1 {[%clk 0:04:50.4]} 9... Nd7
{[%clk 0:04:56.9]} 10. Rxe8+ {[%clk 0:04:49.1]} 10... Qxe8 {[%clk 0:04:56.8]}
11. Be3 {[%clk 0:04:48.7]} 11... Nf8 {[%clk 0:04:56]} 12. Qd2 {[%clk 0:04:48.3]}
12... Be6 {[%clk 0:04:54.9]} 13. Re1 {[%clk 0:04:47.9]} 13... Qd7 {[%clk
0:04:54.1]} 14. a3 {[%clk 0:04:47.4]} 14... Bc7 {[%clk 0:04:53]} 15. Bf4 {[%clk
0:04:47]} 15... Ng6 {[%clk 0:04:51.1]} 16. Bxc7 {[%clk 0:04:45.6]} 16... Qxc7
{[%clk 0:04:51]} 17. c3 {[%clk 0:04:45.1]} 17... Nf4 {[%clk 0:04:48.9]} 18. Qe3
{[%clk 0:04:42.9]} 18... Nxd3 {[%clk 0:04:41.5]} 19. Qxd3 {[%clk 0:04:41.9]}
19... Re8 {[%clk 0:04:37.7]} 20. Qe3 {[%clk 0:04:40]} 20... g6 {[%clk
0:04:36.4]} 21. Qd2 {[%clk 0:04:36.5]} 21... Kg7 {[%clk 0:04:34.6]} 22. h3
{[%clk 0:04:21.2]} 22... Qd7 {[%clk 0:04:32.4]} 23. Qf4 {[%clk 0:04:06.7]} 23...
Bd5 {[%clk 0:04:28.1]} 24. Rxe8 {[%clk 0:04:01.3]} 24... Qxe8 {[%clk 0:04:28]}
25. Qe3 {[%clk 0:04:00.4]} 25... Qxe3 {[%clk 0:04:25.5]} 26. fxe3 {[%clk
0:04:00.3]} 26... g5 {[%clk 0:04:24.8]} 27. Nd2 {[%clk 0:03:49.9]} 27... f5
{[%clk 0:04:22.2]} 28. g4 {[%clk 0:03:46.6]} 28... fxg4 {[%clk 0:04:20.3]} 29.
hxg4 {[%clk 0:03:46.5]} 29... Kg6 {[%clk 0:04:18.7]} 30. e4 {[%clk 0:03:44.7]}
30... Be6 {[%clk 0:04:18.2]} 31. Nf3 {[%clk 0:03:42.1]} 31... f6 {[%clk
0:04:12.2]} 32. Nh2 {[%clk 0:03:39.7]} 32... h5 {[%clk 0:04:10.8]} 33. gxh5+
{[%clk 0:03:38.5]} 33... Kxh5 {[%clk 0:04:10.7]} 34. Kg2 {[%clk 0:03:37.4]}
34... g4 {[%clk 0:04:09.9]} 35. Kg3 {[%clk 0:03:36.8]} 35... Kg5 {[%clk
0:04:09.1]} 36. Nf1 {[%clk 0:03:35.1]} 36... f5 {[%clk 0:03:57.6]} 37. exf5
{[%clk 0:03:32.7]} 37... Kxf5 {[%clk 0:03:49.9]} 38. Ne3+ {[%clk 0:03:26.6]}
38... Ke4 {[%clk 0:03:49.1]} 39. Nxg4 {[%clk 0:03:25.2]} 39... Bxg4 {[%clk
0:03:49]} 40. Kxg4 {[%clk 0:03:25.1]} 40... Kd3 {[%clk 0:03:48.2]} 41. Kf5
{[%clk 0:03:23.4]} 41... Kc2 {[%clk 0:03:47.4]} 42. c4 {[%clk 0:03:22.5]} 42...
b5 {[%clk 0:03:38.4]} 43. d5 {[%clk 0:03:22.4]} 43... bxc4 {[%clk 0:03:37]} 44.
dxc6 {[%clk 0:03:20]} 44... Kxb2 {[%clk 0:03:36.9]} 45. c7 {[%clk 0:03:19.9]}
45... c3 {[%clk 0:03:36.5]} 46. c8=Q {[%clk 0:03:19.8]} 46... c2 {[%clk
0:03:36.2]} 47. Qh8+ {[%clk 0:03:05.7]} 47... Kb1 {[%clk 0:03:29.4]} 48. Qb8+
{[%clk 0:03:02.3]} 48... Ka2 {[%clk 0:03:27.9]} 49. Qh2 {[%clk 0:03:00.3]} 49...
Kb1 {[%clk 0:03:26.3]} 50. Qb8+ {[%clk 0:02:35.9]} 50... Ka2 {[%clk 0:03:23.4]}
51. Qg8+ {[%clk 0:02:33]} 51... Kb2 {[%clk 0:03:05.8]} 52. Qg7+ {[%clk
0:02:30.9]} 52... Ka2 {[%clk 0:03:04.4]} 53. Qc3 {[%clk 0:02:28.6]} 53... Kb1
{[%clk 0:03:02.5]} 54. Qb3+ {[%clk 0:02:27.3]} 54... Kc1 {[%clk 0:03:01.7]} 55.
Ke4 {[%clk 0:02:25.8]} 55... Kd2 {[%clk 0:03:00.8]} 56. Qd3+ {[%clk 0:02:24.7]}
56... Kc1 {[%clk 0:02:58]} 57. Kd4 {[%clk 0:02:20.8]} 57... a5 {[%clk
0:02:56.6]} 58. Kc3 {[%clk 0:02:19.3]} 58... Kb1 {[%clk 0:02:55.5]} 59. Qxc2+
{[%clk 0:02:18.9]} 59... Ka1 {[%clk 0:02:55.4]} 60. Qb2# {[%clk 0:02:18.8]} 1-0

[Event "Live Chess"]
[Site "Chess.com"]
[Date "2023.05.20"]
[Round "-"]
[White "Fazer180"]
[Black "KGreenGator"]
[Result "1-0"]
[WhiteElo "1756"]
[BlackElo "1770"]
[TimeControl "300"]
[EndTime "13:42:10 PDT"]
[Termination "Fazer180 won by checkmate"]

1. e4 {[%clk 0:04:54.9]} 1... c5 {[%clk 0:04:58.7]} 2. Nf3 {[%clk 0:04:53.5]}
2... Nc6 {[%clk 0:04:57.8]} 3. d4 {[%clk 0:04:53.4]} 3... cxd4 {[%clk
0:04:56.2]} 4. Nxd4 {[%clk 0:04:53.2]} 4... e5 {[%clk 0:04:54.8]} 5. Nb5 {[%clk
0:04:51.4]} 5... d6 {[%clk 0:04:52.5]} 6. N1c3 {[%clk 0:04:50]} 6... a6 {[%clk
0:04:51.2]} 7. Na3 {[%clk 0:04:49.7]} 7... Nf6 {[%clk 0:04:49.2]} 8. f3 {[%clk
0:04:46.7]} 8... Be7 {[%clk 0:04:47.7]} 9. Nd5 {[%clk 0:04:44.8]} 9... Nxd5
{[%clk 0:04:42.7]} 10. exd5 {[%clk 0:04:44.7]} 10... Nd4 {[%clk 0:04:36.6]} 11.
c3 {[%clk 0:04:42]} 11... Nf5 {[%clk 0:04:34.1]} 12. Bd3 {[%clk 0:04:38.2]}
12... O-O {[%clk 0:04:31.5]} 13. Qc2 {[%clk 0:04:34]} 13... g6 {[%clk
0:04:25.2]} 14. O-O {[%clk 0:04:21]} 14... Qb6+ {[%clk 0:04:18.4]} 15. Kh1
{[%clk 0:04:19.5]} 15... Ne3 {[%clk 0:04:11.6]} 16. Qf2 {[%clk 0:04:11.8]} 16...
Nxd5 {[%clk 0:04:09.6]} 17. Qxb6 {[%clk 0:04:05.3]} 17... Nxb6 {[%clk
0:04:08.6]} 18. Be3 {[%clk 0:04:04.7]} 18... Nd5 {[%clk 0:04:06.7]} 19. Bh6
{[%clk 0:04:03.7]} 19... Re8 {[%clk 0:04:03.6]} 20. Bc4 {[%clk 0:04:00.6]} 20...
Be6 {[%clk 0:04:01]} 21. Rfd1 {[%clk 0:03:53.6]} 21... Nc7 {[%clk 0:03:58.5]}
22. Bxe6 {[%clk 0:03:49.8]} 22... Nxe6 {[%clk 0:03:57.5]} 23. Nc4 {[%clk
0:03:48.6]} 23... Red8 {[%clk 0:03:54.1]} 24. Rd2 {[%clk 0:03:42.3]} 24... Bg5
{[%clk 0:03:52.4]} 25. Bxg5 {[%clk 0:03:40.6]} 25... Nxg5 {[%clk 0:03:51.4]} 26.
Rxd6 {[%clk 0:03:37.5]} 26... Rxd6 {[%clk 0:03:48.6]} 27. Nxd6 {[%clk
0:03:36.7]} 27... Rb8 {[%clk 0:03:46.4]} 28. Nc4 {[%clk 0:03:28.3]} 28... f6
{[%clk 0:03:42.7]} 29. Rd1 {[%clk 0:03:26.6]} 29... Ne6 {[%clk 0:03:37.2]} 30.
Rd6 {[%clk 0:03:22.5]} 30... Kf7 {[%clk 0:03:29.8]} 31. Rd7+ {[%clk 0:03:20.6]}
31... Kg8 {[%clk 0:03:26.9]} 32. Ne3 {[%clk 0:03:09.3]} 32... b5 {[%clk
0:03:22.1]} 33. Rd6 {[%clk 0:03:05.9]} 33... Nc5 {[%clk 0:03:13.8]} 34. Rxf6
{[%clk 0:02:58.3]} 34... Kg7 {[%clk 0:03:11.9]} 35. Rc6 {[%clk 0:02:56.8]} 35...
Na4 {[%clk 0:03:05]} 36. Rxa6 {[%clk 0:02:49.4]} 36... Nxb2 {[%clk 0:03:03.3]}
37. Kg1 {[%clk 0:02:35.9]} 37... Nc4 {[%clk 0:02:59.7]} 38. Nxc4 {[%clk
0:02:32.6]} 38... bxc4 {[%clk 0:02:59]} 39. Rc6 {[%clk 0:02:28.3]} 39... Rb1+
{[%clk 0:02:57.6]} 40. Kf2 {[%clk 0:02:26.7]} 40... Rb2+ {[%clk 0:02:57.2]} 41.
Kg3 {[%clk 0:02:23.4]} 41... Rxa2 {[%clk 0:02:56.6]} 42. Rxc4 {[%clk 0:02:22.8]}
42... Rc2 {[%clk 0:02:54.1]} 43. Rc5 {[%clk 0:02:19.3]} 43... Kf6 {[%clk
0:02:52.4]} 44. Rc7 {[%clk 0:02:18.2]} 44... h5 {[%clk 0:02:50]} 45. c4 {[%clk
0:02:15.4]} 45... g5 {[%clk 0:02:43.9]} 46. c5 {[%clk 0:02:04.3]} 46... h4+
{[%clk 0:02:39.6]} 47. Kh3 {[%clk 0:02:01.9]} 47... Rc4 {[%clk 0:02:35.8]} 48.
c6 {[%clk 0:01:56.6]} 48... Ke6 {[%clk 0:02:33.4]} 49. Rc8 {[%clk 0:01:53.2]}
49... Kd6 {[%clk 0:02:31.4]} 50. Rg8 {[%clk 0:01:47]} 50... Kxc6 {[%clk
0:02:25.5]} 51. Rxg5 {[%clk 0:01:45.9]} 51... Kd6 {[%clk 0:02:24.2]} 52. Rg4
{[%clk 0:01:45.1]} 52... Rxg4 {[%clk 0:02:21.4]} 53. Kxg4 {[%clk 0:01:43]} 53...
Kd5 {[%clk 0:02:20.7]} 54. Kxh4 {[%clk 0:01:41.6]} 54... e4 {[%clk 0:02:20]} 55.
fxe4+ {[%clk 0:01:40.3]} 55... Kxe4 {[%clk 0:02:19.6]} 56. Kg5 {[%clk
0:01:38.5]} 56... Ke5 {[%clk 0:02:18.5]} 57. h4 {[%clk 0:01:37.1]} 57... Ke6
{[%clk 0:02:17.9]} 58. Kg6 {[%clk 0:01:36.4]} 58... Ke7 {[%clk 0:02:15.2]} 59.
Kg7 {[%clk 0:01:34.6]} 59... Ke6 {[%clk 0:02:14.6]} 60. g4 {[%clk 0:01:33.7]}
60... Ke5 {[%clk 0:02:13.4]} 61. h5 {[%clk 0:01:31.9]} 61... Kf4 {[%clk
0:02:13]} 62. h6 {[%clk 0:01:31.4]} 62... Kxg4 {[%clk 0:02:12.2]} 63. h7 {[%clk
0:01:31]} 63... Kg5 {[%clk 0:02:11.8]} 64. h8=Q {[%clk 0:01:30.6]} 64... Kf5
{[%clk 0:02:11.4]} 65. Qh6 {[%clk 0:01:29.3]} 65... Kg4 {[%clk 0:02:10.5]} 66.
Qf6 {[%clk 0:01:26.3]} 66... Kg3 {[%clk 0:02:10.2]} 67. Kg6 {[%clk 0:01:23.4]}
67... Kg4 {[%clk 0:02:09.8]} 68. Qf5+ {[%clk 0:01:21.8]} 68... Kh4 {[%clk
0:02:08.4]} 69. Qg5+ {[%clk 0:01:18.5]} 69... Kh3 {[%clk 0:02:07.7]} 70. Kf5
{[%clk 0:01:17.4]} 70... Kh2 {[%clk 0:02:07.4]} 71. Kf4 {[%clk 0:01:16.2]} 71...
Kh3 {[%clk 0:02:06.6]} 72. Qg3# {[%clk 0:01:14.7]} 1-0

[Event "Live Chess"]
[Site "Chess.com"]
[Date "2023.05.20"]
[Round "-"]
[White "Stanbad1"]
[Black "gmnorfolk"]
[Result "0-1"]
[WhiteElo "2408"]
[BlackElo "2101"]
[TimeControl "300"]
[EndTime "13:42:12 PDT"]
[Termination "gmnorfolk won by resignation"]

1. d4 {[%clk 0:04:58.2]} 1... Nf6 {[%clk 0:04:55.9]} 2. Nc3 {[%clk 0:04:57]}
2... d5 {[%clk 0:04:54.2]} 3. Bf4 {[%clk 0:04:56.5]} 3... e6 {[%clk 0:04:52.2]}
4. Nb5 {[%clk 0:04:54.6]} 4... Bb4+ {[%clk 0:04:50.5]} 5. c3 {[%clk 0:04:53.4]}
5... Ba5 {[%clk 0:04:50.1]} 6. Qa4 {[%clk 0:04:48.6]} 6... Nc6 {[%clk
0:04:43.8]} 7. Nf3 {[%clk 0:04:41.7]} 7... O-O {[%clk 0:04:41.1]} 8. Ne5 {[%clk
0:04:40.3]} 8... Bb6 {[%clk 0:04:35]} 9. Nxc6 {[%clk 0:04:37.7]} 9... bxc6
{[%clk 0:04:33.7]} 10. Na3 {[%clk 0:04:37.6]} 10... c5 {[%clk 0:04:29.3]} 11.
Nc2 {[%clk 0:04:35.2]} 11... cxd4 {[%clk 0:04:26.6]} 12. cxd4 {[%clk 0:04:33.9]}
12... c5 {[%clk 0:04:24.3]} 13. dxc5 {[%clk 0:04:32.8]} 13... Bxc5 {[%clk
0:04:23.5]} 14. e3 {[%clk 0:04:31.8]} 14... Ne4 {[%clk 0:04:18.9]} 15. Bd3
{[%clk 0:04:29]} 15... g5 {[%clk 0:04:06.8]} 16. Be5 {[%clk 0:04:22.6]} 16... f6
{[%clk 0:04:02.5]} 17. Bd4 {[%clk 0:04:19.2]} 17... e5 {[%clk 0:04:00]} 18. Bxe4
{[%clk 0:04:08.4]} 18... exd4 {[%clk 0:03:41.1]} 19. Qb3 {[%clk 0:04:06.8]}
19... Be6 {[%clk 0:03:29.9]} 20. exd4 {[%clk 0:04:03.1]} 20... Qa5+ {[%clk
0:03:17.8]} 21. Kf1 {[%clk 0:04:00]} 21... Rab8 {[%clk 0:02:57.8]} 22. Bxd5
{[%clk 0:03:57]} 22... Kh8 {[%clk 0:02:50.6]} 23. Qf3 {[%clk 0:03:51.7]} 23...
Qb5+ {[%clk 0:02:28.4]} 24. Kg1 {[%clk 0:03:43.5]} 24... Qxb2 {[%clk 0:02:25.5]}
25. Bxe6 {[%clk 0:03:39]} 25... Qxa1+ {[%clk 0:02:19.5]} 26. Nxa1 {[%clk
0:03:32.3]} 26... Rb1+ {[%clk 0:02:15.8]} 0-1

[Event "Live Chess"]
[Site "Chess.com"]
[Date "2023.05.20"]
[Round "-"]
[White "KeithArkell"]
[Black "therealab0ne"]
[Result "1-0"]
[WhiteElo "2615"]
[BlackElo "702"]
[TimeControl "300"]
[EndTime "13:42:16 PDT"]
[Termination "KeithArkell won by resignation"]

1. d4 {[%clk 0:04:58.4]} 1... d5 {[%clk 0:04:58.1]} 2. Nf3 {[%clk 0:04:57.6]}
2... e6 {[%clk 0:04:48.6]} 3. c4 {[%clk 0:04:56.7]} 3... Nf6 {[%clk 0:04:45.5]}
4. Nc3 {[%clk 0:04:56]} 4... c5 {[%clk 0:04:44.5]} 5. cxd5 {[%clk 0:04:55.1]}
5... exd5 {[%clk 0:04:43.6]} 6. Bg5 {[%clk 0:04:54.4]} 6... Bg4 {[%clk
0:04:38.7]} 7. Ne5 {[%clk 0:04:52.6]} 7... Be7 {[%clk 0:04:37.1]} 8. Bxf6 {[%clk
0:04:50.9]} 8... Bxf6 {[%clk 0:04:36]} 9. Nxg4 {[%clk 0:04:50.2]} 9... Nc6
{[%clk 0:04:31.6]} 10. dxc5 {[%clk 0:04:47.4]} 10... d4 {[%clk 0:04:30.2]} 11.
Ne4 {[%clk 0:04:46]} 11... Be7 {[%clk 0:04:14.2]} 12. Nd6+ {[%clk 0:04:38.5]}
12... Bxd6 {[%clk 0:04:11.7]} 13. cxd6 {[%clk 0:04:37.6]} 13... Qxd6 {[%clk
0:04:10.8]} 14. h4 {[%clk 0:04:35.1]} 14... h6 {[%clk 0:04:07.7]} 15. h5 {[%clk
0:04:33]} 15... O-O {[%clk 0:04:06.3]} 16. a3 {[%clk 0:04:31]} 16... Rfe8 {[%clk
0:03:48.1]} 17. g3 {[%clk 0:04:28.7]} 17... d3 {[%clk 0:03:46.5]} 18. Ne3 {[%clk
0:04:21]} 18... Nb4 {[%clk 0:03:38.5]} 19. exd3 {[%clk 0:04:17.7]} 19... Nxd3+
{[%clk 0:03:20.1]} 20. Qxd3 {[%clk 0:04:15.4]} 20... Qxd3 {[%clk 0:03:18.4]} 21.
Bxd3 {[%clk 0:04:14.6]} 21... Rad8 {[%clk 0:03:10.8]} 22. Ke2 {[%clk 0:04:13.8]}
22... Kf8 {[%clk 0:03:09.8]} 23. Rhc1 {[%clk 0:04:12.4]} 23... Re5 {[%clk
0:03:05.1]} 24. Rc7 {[%clk 0:04:10]} 24... Rxh5 {[%clk 0:02:48.6]} 25. Rac1
{[%clk 0:04:08.6]} 25... g6 {[%clk 0:02:42.2]} 26. Rxb7 {[%clk 0:04:07.5]} 26...
Rh2 {[%clk 0:02:31.3]} 27. Rcc7 {[%clk 0:04:05.9]} 1-0

[Event "Live Chess"]
[Site "Chess.com"]
[Date "2023.05.20"]
[Round "-"]
[White "Pandreq"]
[Black "BostonStrangler"]
[Result "0-1"]
[WhiteElo "1276"]
[BlackElo "2052"]
[TimeControl "300"]
[EndTime "13:42:19 PDT"]
[Termination "BostonStrangler won by checkmate"]

1. d4 {[%clk 0:04:57.4]} 1... Nf6 {[%clk 0:04:57.3]} 2. c4 {[%clk 0:04:56.2]}
2... c5 {[%clk 0:04:55.9]} 3. d5 {[%clk 0:04:54.4]} 3... b5 {[%clk 0:04:54.7]}
4. b3 {[%clk 0:04:52.4]} 4... bxc4 {[%clk 0:04:51.8]} 5. bxc4 {[%clk 0:04:51.3]}
5... d6 {[%clk 0:04:51.5]} 6. Bb2 {[%clk 0:04:48.8]} 6... g6 {[%clk 0:04:51]} 7.
Nf3 {[%clk 0:04:42.2]} 7... Bg7 {[%clk 0:04:47.9]} 8. Nc3 {[%clk 0:04:33.9]}
8... O-O {[%clk 0:04:45.9]} 9. Qc2 {[%clk 0:04:30.6]} 9... Qa5 {[%clk
0:04:44.1]} 10. Nd2 {[%clk 0:04:21]} 10... Na6 {[%clk 0:04:41]} 11. e4 {[%clk
0:04:11.9]} 11... Nb4 {[%clk 0:04:38.9]} 12. Qc1 {[%clk 0:04:07.5]} 12... Rb8
{[%clk 0:04:36.5]} 13. Nb3 {[%clk 0:04:00.5]} 13... Qd8 {[%clk 0:04:18.3]} 14.
Be2 {[%clk 0:03:47.6]} 14... a5 {[%clk 0:04:11.3]} 15. a4 {[%clk 0:03:39.1]}
15... Nbxd5 {[%clk 0:04:07]} 16. Nxa5 {[%clk 0:03:21.9]} 16... Nxc3 {[%clk
0:03:58.8]} 17. Nc6 {[%clk 0:03:10.7]} 17... Rxb2 {[%clk 0:03:56.8]} 18. Nxd8
{[%clk 0:03:05.8]} 18... Rxe2+ {[%clk 0:03:55.1]} 19. Kf1 {[%clk 0:03:02.4]}
19... Nfxe4 {[%clk 0:03:53.3]} 20. g3 {[%clk 0:02:34.4]} 20... Rxf2+ {[%clk
0:03:49.4]} 21. Ke1 {[%clk 0:02:25.3]} 21... Re2+ {[%clk 0:03:47.5]} 22. Kf1
{[%clk 0:02:21.8]} 22... Bh3+ {[%clk 0:03:46.2]} 23. Kg1 {[%clk 0:02:14.1]}
23... Nd2 {[%clk 0:03:36.3]} 24. Qxc3 {[%clk 0:02:06.6]} 24... Rg2# {[%clk
0:03:33.3]} 0-1

[Event "Live Chess"]
[Site "Chess.com"]
[Date "2023.05.20"]
[Round "-"]
[White "Shepherds_Pie"]
[Black "MartaMost"]
[Result "1-0"]
[WhiteElo "1919"]
[BlackElo "1058"]
[TimeControl "300"]
[EndTime "13:42:20 PDT"]
[Termination "Shepherds_Pie won by resignation"]

1. c4 {[%clk 0:04:58.5]} 1... e5 {[%clk 0:04:58.1]} 2. Nc3 {[%clk 0:04:57.6]}
2... Bb4 {[%clk 0:04:50.7]} 3. Qc2 {[%clk 0:04:54.1]} 3... Bxc3 {[%clk
0:04:48.5]} 4. Qxc3 {[%clk 0:04:52.4]} 4... Nc6 {[%clk 0:04:44.2]} 5. e3 {[%clk
0:04:50.6]} 5... Qf6 {[%clk 0:04:40.6]} 6. b3 {[%clk 0:04:41.5]} 6... e4 {[%clk
0:04:35.1]} 7. Bb2 {[%clk 0:04:38.6]} 7... Qxc3 {[%clk 0:04:33.7]} 8. Bxc3
{[%clk 0:04:37.6]} 8... f6 {[%clk 0:04:25.8]} 9. f4 {[%clk 0:04:33.3]} 9... d6
{[%clk 0:04:17]} 10. g3 {[%clk 0:04:31.2]} 10... Bg4 {[%clk 0:04:15.2]} 11. Bg2
{[%clk 0:04:29.6]} 11... Bf5 {[%clk 0:04:01.1]} 12. a3 {[%clk 0:04:25.3]} 12...
O-O-O {[%clk 0:03:56]} 13. Ne2 {[%clk 0:04:23.3]} 13... Nge7 {[%clk 0:03:53.3]}
14. h3 {[%clk 0:04:17.1]} 14... d5 {[%clk 0:03:46.8]} 15. g4 {[%clk 0:04:11.9]}
15... Be6 {[%clk 0:03:38.6]} 16. f5 {[%clk 0:04:08.5]} 16... Bf7 {[%clk
0:03:36.9]} 17. cxd5 {[%clk 0:04:00]} 17... Bxd5 {[%clk 0:03:31.1]} 18. Nf4
{[%clk 0:03:56.6]} 18... Bxb3 {[%clk 0:03:26.9]} 19. Bxe4 {[%clk 0:03:52.1]}
19... Bd5 {[%clk 0:03:21.2]} 20. Nxd5 {[%clk 0:03:49.4]} 20... Nxd5 {[%clk
0:03:19.7]} 21. Rc1 {[%clk 0:03:46.8]} 21... Nxc3 {[%clk 0:03:16]} 22. Rxc3
{[%clk 0:03:45.4]} 22... Ne5 {[%clk 0:03:11.1]} 23. Ke2 {[%clk 0:03:41.4]} 23...
Rd6 {[%clk 0:03:04]} 24. Rb1 {[%clk 0:03:37.5]} 24... b6 {[%clk 0:03:00.4]} 25.
Rbc1 {[%clk 0:03:33.9]} 25... c5 {[%clk 0:02:58.8]} 26. d4 {[%clk 0:03:32.5]}
26... Nd7 {[%clk 0:02:52.7]} 27. dxc5 {[%clk 0:03:23.2]} 27... Nxc5 {[%clk
0:02:49.9]} 28. Bf3 {[%clk 0:03:18.4]} 28... Rhd8 {[%clk 0:02:44.2]} 29. R1c2
{[%clk 0:03:14]} 29... Kb8 {[%clk 0:02:39.8]} 30. h4 {[%clk 0:03:04.4]} 30...
Rd1 {[%clk 0:02:35.7]} 31. Rc1 {[%clk 0:02:35]} 31... R1d2+ {[%clk 0:02:33.3]}
32. Kf1 {[%clk 0:02:32.8]} 32... R2d3 {[%clk 0:02:23.8]} 33. Rxd3 {[%clk
0:02:29.6]} 33... Rxd3 {[%clk 0:02:22.3]} 34. Ke2 {[%clk 0:02:25.9]} 34... Rxa3
{[%clk 0:02:19.2]} 35. Rd1 {[%clk 0:02:25]} 35... Kc7 {[%clk 0:02:18.2]} 36. Rd4
{[%clk 0:02:14.7]} 36... Ra2+ {[%clk 0:02:14.9]} 37. Kf1 {[%clk 0:02:12.3]}
37... a5 {[%clk 0:02:13.4]} 38. g5 {[%clk 0:02:09.7]} 38... fxg5 {[%clk
0:02:06.9]} 39. hxg5 {[%clk 0:02:08.5]} 39... Ra3 {[%clk 0:02:05.8]} 40. Kf2
{[%clk 0:02:04.1]} 40... Ra2+ {[%clk 0:02:04]} 41. Kg3 {[%clk 0:02:03.2]} 41...
a4 {[%clk 0:01:58.2]} 42. f6 {[%clk 0:02:00.8]} 42... gxf6 {[%clk 0:01:56.8]}
43. gxf6 {[%clk 0:01:59.8]} 43... Ne6 {[%clk 0:01:55.6]} 44. Re4 {[%clk
0:01:49.8]} 44... Kd6 {[%clk 0:01:54.2]} 45. f7 {[%clk 0:01:46.6]} 45... a3
{[%clk 0:01:44]} 46. Rxe6+ {[%clk 0:01:43]} 46... Kxe6 {[%clk 0:01:41.8]} 47.
f8=Q {[%clk 0:01:42]} 47... Rb2 {[%clk 0:01:38]} 48. Qxa3 {[%clk 0:01:39]} 48...
Rb1 {[%clk 0:01:23.4]} 49. Qa2+ {[%clk 0:01:36.6]} 1-0